[Event "Titled Tuesday Blitz February 21 Late 2023"]
[White "Perske, Thore"]
[Black "Kovacs, Klara"]
[WhiteFideId "12902195"]
[BlackFideId "733210"]
[WhiteElo "2448"]
[BlackElo "2121"]
[Result "1-0"]
[Round "01"]
[TimeControl "180+2"]
[Date "2023.02.21"]
[WhiteClock "0:02:13"]
[BlackClock "0:00:13"]

1. e4 {[%clk 0:02:59]}  e6 {[%clk 0:02:48]} 2. d4 {[%clk 0:02:58]}  d5 {[%clk 0:02:49]} 3. Nd2 {[%clk 0:02:59]}  Be7 {[%clk 0:02:48]} 4. Bd3 {[%clk 0:02:58]}  Nf6 {[%clk 0:02:46]} 5. e5 {[%clk 0:02:58]}  Nfd7 {[%clk 0:02:46]} 6. c3 {[%clk 0:02:58]}  c5 {[%clk 0:02:47]} 7. Ne2 {[%clk 0:02:59]}  Nc6 {[%clk 0:02:47]} 8. f4 {[%clk 0:02:59]}  g6 {[%clk 0:02:46]} 9. Nf3 {[%clk 0:02:58]}  O-O {[%clk 0:02:46]} 10. h4 {[%clk 0:02:56]}  h5 {[%clk 0:02:45]} 11. a3 {[%clk 0:02:56]}  cxd4 {[%clk 0:02:44]} 12. cxd4 {[%clk 0:02:56]}  a5 {[%clk 0:02:42]} 13. b3 {[%clk 0:02:55]}  b6 {[%clk 0:02:24]} 14. Qc2 {[%clk 0:02:45]}  Bb7 {[%clk 0:01:27]} 15. Bxg6 {[%clk 0:02:42]}  Rc8 {[%clk 0:00:53]} 16. Qb1 {[%clk 0:02:40]}  Na7 {[%clk 0:00:44]} 17. Bxh5 {[%clk 0:02:37]}  Nb5 {[%clk 0:00:38]} 18. Bb2 {[%clk 0:02:31]}  Ba6 {[%clk 0:00:34]} 19. Ng5 {[%clk 0:02:29]}  f5 {[%clk 0:00:31]} 20. Nxe6 {[%clk 0:02:25]}  Bxh4+ {[%clk 0:00:30]} 21. g3 {[%clk 0:02:23]}  Qe7 {[%clk 0:00:30]} 22. Nxf8 {[%clk 0:02:20]}  Nxf8 {[%clk 0:00:27]} 23. Rxh4 {[%clk 0:02:18]}  Qe6 {[%clk 0:00:24]} 24. Bf3 {[%clk 0:02:14]}  Bb7 {[%clk 0:00:13]} 25. Rh5 {[%clk 0:02:13]} 1-0


[Site "https://www.chess.com"]

[Event "Titled Tuesday Blitz February 21 Late 2023"]
[White "Darini, Pouria"]
[Black "Rios Escobar, Adan"]
[WhiteFideId "12502200"]
[BlackFideId "3403645"]
[WhiteElo "2401"]
[BlackElo "2234"]
[Result "1-0"]
[Round "01"]
[TimeControl "180+2"]
[Date "2023.02.21"]
[WhiteClock "0:00:16"]
[BlackClock "0:00:02"]

1. e4 {[%clk 0:02:58]}  c5 {[%clk 0:02:59]} 2. Nf3 {[%clk 0:02:58]}  d6 {[%clk 0:03:00]} 3. d4 {[%clk 0:02:59]}  cxd4 {[%clk 0:03:00]} 4. Nxd4 {[%clk 0:02:59]}  Nf6 {[%clk 0:03:01]} 5. Nc3 {[%clk 0:02:59]}  a6 {[%clk 0:03:01]} 6. a4 {[%clk 0:03:00]}  g6 {[%clk 0:02:57]} 7. Be2 {[%clk 0:02:55]}  Bg7 {[%clk 0:02:52]} 8. Be3 {[%clk 0:02:56]}  O-O {[%clk 0:02:51]} 9. a5 {[%clk 0:02:56]}  Nc6 {[%clk 0:02:48]} 10. Nxc6 {[%clk 0:02:39]}  bxc6 {[%clk 0:02:49]} 11. O-O {[%clk 0:02:36]}  c5 {[%clk 0:02:40]} 12. e5 {[%clk 0:02:33]}  dxe5 {[%clk 0:02:29]} 13. Qxd8 {[%clk 0:02:34]}  Rxd8 {[%clk 0:02:29]} 14. Bxc5 {[%clk 0:02:35]}  Kf8 {[%clk 0:02:27]} 15. Rfd1 {[%clk 0:02:31]}  Bb7 {[%clk 0:02:27]} 16. Bb6 {[%clk 0:02:25]}  Rxd1+ {[%clk 0:02:23]} 17. Rxd1 {[%clk 0:02:26]}  Ke8 {[%clk 0:02:19]} 18. Na4 {[%clk 0:01:48]}  Nd7 {[%clk 0:02:16]} 19. Rxd7 {[%clk 0:01:13]}  Kxd7 {[%clk 0:02:12]} 20. Nc5+ {[%clk 0:01:14]}  Kc8 {[%clk 0:02:07]} 21. Nxb7 {[%clk 0:01:00]}  Kxb7 {[%clk 0:02:07]} 22. Bf3+ {[%clk 0:01:01]}  Kb8 {[%clk 0:02:06]} 23. Bxa8 {[%clk 0:00:56]}  Kxa8 {[%clk 0:02:07]} 24. c4 {[%clk 0:00:47]}  e4 {[%clk 0:02:04]} 25. b4 {[%clk 0:00:48]}  Kb7 {[%clk 0:01:56]} 26. b5 {[%clk 0:00:33]}  Bc3 {[%clk 0:01:51]} 27. Kf1 {[%clk 0:00:32]}  e5 {[%clk 0:01:50]} 28. Ke2 {[%clk 0:00:27]}  Bd4 {[%clk 0:01:48]} 29. Bd8 {[%clk 0:00:09]}  f5 {[%clk 0:01:46]} 30. f3 {[%clk 0:00:09]}  exf3+ {[%clk 0:01:46]} 31. gxf3 {[%clk 0:00:08]}  h5 {[%clk 0:01:46]} 32. h3 {[%clk 0:00:08]}  Bc5 {[%clk 0:01:40]} 33. Kd3 {[%clk 0:00:08]}  Bb4 {[%clk 0:01:18]} 34. Bb6 {[%clk 0:00:09]}  Be7 {[%clk 0:01:09]} 35. Kc3 {[%clk 0:00:07]}  Bf8 {[%clk 0:00:54]} 36. Kd3 {[%clk 0:00:08]}  Be7 {[%clk 0:00:55]} 37. Ke3 {[%clk 0:00:06]}  Bh4 {[%clk 0:00:47]} 38. Kd3 {[%clk 0:00:06]}  Bf6 {[%clk 0:00:43]} 39. Bc5 {[%clk 0:00:05]}  Bd8 {[%clk 0:00:41]} 40. Bb4 {[%clk 0:00:05]}  Bc7 {[%clk 0:00:33]} 41. Bc3 {[%clk 0:00:05]}  Bd6 {[%clk 0:00:22]} 42. Bd2 {[%clk 0:00:05]}  Bc5 {[%clk 0:00:19]} 43. Ke2 {[%clk 0:00:06]}  Bd4 {[%clk 0:00:17]} 44. Kd3 {[%clk 0:00:06]}  Bc5 {[%clk 0:00:17]} 45. Be1 {[%clk 0:00:06]}  Be7 {[%clk 0:00:17]} 46. Bg3 {[%clk 0:00:06]}  Bf6 {[%clk 0:00:17]} 47. Be1 {[%clk 0:00:06]}  Be7 {[%clk 0:00:16]} 48. Bd2 {[%clk 0:00:07]}  Bd6 {[%clk 0:00:16]} 49. Ke2 {[%clk 0:00:07]}  Bc5 {[%clk 0:00:16]} 50. Bc3 {[%clk 0:00:08]}  Bd6 {[%clk 0:00:17]} 51. Kd3 {[%clk 0:00:09]}  Bc7 {[%clk 0:00:17]} 52. Ke2 {[%clk 0:00:09]}  Bb8 {[%clk 0:00:18]} 53. Bb4 {[%clk 0:00:08]}  Bc7 {[%clk 0:00:18]} 54. Kf2 {[%clk 0:00:08]}  Bd8 {[%clk 0:00:17]} 55. Ke3 {[%clk 0:00:08]}  Bg5+ {[%clk 0:00:17]} 56. Ke2 {[%clk 0:00:08]}  Bf6 {[%clk 0:00:18]} 57. Bc3 {[%clk 0:00:09]}  Bg7 {[%clk 0:00:17]} 58. f4 {[%clk 0:00:09]}  Bf6 {[%clk 0:00:06]} 59. Bxe5 {[%clk 0:00:09]}  Be7 {[%clk 0:00:06]} 60. Bc3 {[%clk 0:00:09]}  Bc5 {[%clk 0:00:07]} 61. Kf3 {[%clk 0:00:09]}  Bd6 {[%clk 0:00:06]} 62. Bd2 {[%clk 0:00:10]}  Be7 {[%clk 0:00:06]} 63. Kg3 {[%clk 0:00:10]}  Bd8 {[%clk 0:00:05]} 64. Kg2 {[%clk 0:00:11]}  Be7 {[%clk 0:00:06]} 65. Kf3 {[%clk 0:00:11]}  Bd8 {[%clk 0:00:06]} 66. Ke2 {[%clk 0:00:12]}  Bc7 {[%clk 0:00:07]} 67. Kd3 {[%clk 0:00:13]}  Bd6 {[%clk 0:00:07]} 68. Kd4 {[%clk 0:00:13]}  Bc7 {[%clk 0:00:07]} 69. Kd5 {[%clk 0:00:14]}  Bd8 {[%clk 0:00:02]} 70. b6 {[%clk 0:00:14]}  g5 {[%clk 0:00:02]} 71. fxg5 {[%clk 0:00:14]}  h4 {[%clk 0:00:02]} 72. c5 {[%clk 0:00:14]}  Be7 {[%clk 0:00:01]} 73. c6+ {[%clk 0:00:15]}  Kb8 {[%clk 0:00:01]} 74. b7 {[%clk 0:00:16]}  Kc7 {[%clk 0:00:01]} 75. Bf4+ {[%clk 0:00:16]}  Kd8 {[%clk 0:00:02]} 76. b8=Q# {[%clk 0:00:16]} 1-0


[Site "https://www.chess.com"]

[Event "Titled Tuesday Blitz February 21 Late 2023"]
[White "Lucassen, Mickey"]
[Black "Ozer, Omer Faruk"]
[WhiteFideId "12919110"]
[BlackFideId "6354564"]
[WhiteElo "2023"]
[BlackElo "2360"]
[Result "0-1"]
[Round "01"]
[TimeControl "180+2"]
[Date "2023.02.21"]
[WhiteClock "0:00:20"]
[BlackClock "0:00:33"]

1. d4 {[%clk 0:02:57]}  d5 {[%clk 0:02:59]} 2. Nf3 {[%clk 0:02:56]}  Nf6 {[%clk 0:02:58]} 3. g3 {[%clk 0:02:56]}  g6 {[%clk 0:02:52]} 4. Bg2 {[%clk 0:02:56]}  Bg7 {[%clk 0:02:52]} 5. O-O {[%clk 0:02:57]}  O-O {[%clk 0:02:53]} 6. c4 {[%clk 0:02:57]}  dxc4 {[%clk 0:02:53]} 7. Na3 {[%clk 0:02:57]}  c3 {[%clk 0:02:52]} 8. bxc3 {[%clk 0:02:57]}  c5 {[%clk 0:02:53]} 9. Bb2 {[%clk 0:02:55]}  a6 {[%clk 0:02:43]} 10. Nc4 {[%clk 0:02:48]}  Qc7 {[%clk 0:02:39]} 11. Nce5 {[%clk 0:02:44]}  Nbd7 {[%clk 0:02:34]} 12. a4 {[%clk 0:02:38]}  Rd8 {[%clk 0:02:29]} 13. Qb3 {[%clk 0:02:37]}  Nxe5 {[%clk 0:02:28]} 14. Nxe5 {[%clk 0:02:34]}  Be6 {[%clk 0:02:27]} 15. Qa3 {[%clk 0:02:08]}  Rac8 {[%clk 0:02:17]} 16. a5 {[%clk 0:02:06]}  Bd5 {[%clk 0:02:13]} 17. Rfd1 {[%clk 0:01:58]}  Bxg2 {[%clk 0:02:12]} 18. Kxg2 {[%clk 0:01:58]}  Nd5 {[%clk 0:02:08]} 19. Nf3 {[%clk 0:01:41]}  e6 {[%clk 0:02:02]} 20. Rac1 {[%clk 0:01:38]}  Bh6 {[%clk 0:01:55]} 21. e3 {[%clk 0:01:34]}  Nf6 {[%clk 0:01:48]} 22. Ne5 {[%clk 0:01:23]}  Bf8 {[%clk 0:01:43]} 23. Qa4 {[%clk 0:01:20]}  Bd6 {[%clk 0:01:39]} 24. Nd3 {[%clk 0:01:14]}  c4 {[%clk 0:01:36]} 25. Nf4 {[%clk 0:01:13]}  Bxf4 {[%clk 0:01:35]} 26. exf4 {[%clk 0:01:12]}  Rd5 {[%clk 0:01:35]} 27. Ra1 {[%clk 0:01:05]}  Rb5 {[%clk 0:01:34]} 28. Rdb1 {[%clk 0:00:59]}  Qc6+ {[%clk 0:01:31]} 29. f3 {[%clk 0:00:57]}  Nd5 {[%clk 0:01:29]} 30. Kf2 {[%clk 0:00:52]}  b6 {[%clk 0:00:58]} 31. axb6 {[%clk 0:00:39]}  Qxb6 {[%clk 0:00:58]} 32. Qc2 {[%clk 0:00:30]}  Rb8 {[%clk 0:00:57]} 33. Ra2 {[%clk 0:00:30]}  Rb3 {[%clk 0:00:57]} 34. Ke2 {[%clk 0:00:28]}  Nxc3+ {[%clk 0:00:56]} 35. Bxc3 {[%clk 0:00:28]}  Rxb1 {[%clk 0:00:56]} 36. Qe4 {[%clk 0:00:21]}  Qb3 {[%clk 0:00:52]} 37. Rc2 {[%clk 0:00:20]}  Rh1 {[%clk 0:00:38]} 38. Ke3 {[%clk 0:00:20]}  Re1+ {[%clk 0:00:33]} 0-1


[Site "https://www.chess.com"]

[Event "Titled Tuesday Blitz February 21 Late 2023"]
[White "Fiorito, Joaquin"]
[Black "Benmesbah, Natacha"]
[WhiteFideId "180173"]
[BlackFideId "642002"]
[WhiteElo "2405"]
[BlackElo "2261"]
[Result "1-0"]
[Round "01"]
[TimeControl "180+2"]
[Date "2023.02.21"]
[WhiteClock "0:01:20"]
[BlackClock "0:00:42"]

1. d4 {[%clk 0:03:00]}  Nf6 {[%clk 0:02:59]} 2. Nc3 {[%clk 0:03:01]}  d6 {[%clk 0:02:55]} 3. e4 {[%clk 0:03:00]}  e5 {[%clk 0:02:55]} 4. Nf3 {[%clk 0:02:57]}  Nbd7 {[%clk 0:02:54]} 5. Bc4 {[%clk 0:02:57]}  Be7 {[%clk 0:02:53]} 6. O-O {[%clk 0:02:57]}  O-O {[%clk 0:02:53]} 7. Re1 {[%clk 0:02:58]}  a6 {[%clk 0:02:42]} 8. a4 {[%clk 0:02:58]}  b6 {[%clk 0:02:42]} 9. h3 {[%clk 0:02:54]}  Bb7 {[%clk 0:02:28]} 10. b3 {[%clk 0:02:49]}  c6 {[%clk 0:02:18]} 11. Bb2 {[%clk 0:02:39]}  b5 {[%clk 0:02:16]} 12. Bd3 {[%clk 0:02:33]}  exd4 {[%clk 0:02:10]} 13. Nxd4 {[%clk 0:02:32]}  Ne5 {[%clk 0:02:00]} 14. f4 {[%clk 0:02:02]}  Nxd3 {[%clk 0:01:42]} 15. Qxd3 {[%clk 0:02:03]}  c5 {[%clk 0:01:40]} 16. Nf5 {[%clk 0:02:00]}  c4 {[%clk 0:01:22]} 17. Nxe7+ {[%clk 0:01:44]}  Qxe7 {[%clk 0:01:19]} 18. bxc4 {[%clk 0:01:44]}  bxc4 {[%clk 0:01:19]} 19. Qxc4 {[%clk 0:01:45]}  Rac8 {[%clk 0:01:19]} 20. Qd4 {[%clk 0:01:45]}  Rc5 {[%clk 0:01:09]} 21. Rad1 {[%clk 0:01:43]}  Rc6 {[%clk 0:01:04]} 22. Nd5 {[%clk 0:01:40]}  Qe6 {[%clk 0:01:01]} 23. Nxf6+ {[%clk 0:01:33]}  Qxf6 {[%clk 0:01:01]} 24. Qxf6 {[%clk 0:01:34]}  gxf6 {[%clk 0:01:01]} 25. Bxf6 {[%clk 0:01:35]}  Rxc2 {[%clk 0:01:01]} 26. Rxd6 {[%clk 0:01:32]}  Re8 {[%clk 0:00:56]} 27. Rd3 {[%clk 0:01:31]}  Kf8 {[%clk 0:00:46]} 28. Rd4 {[%clk 0:01:22]}  Rec8 {[%clk 0:00:42]} 29. Red1 {[%clk 0:01:21]}  Ke8 {[%clk 0:00:42]} 30. Rd8+ {[%clk 0:01:20]} 1-0


[Site "https://www.chess.com"]

[Event "Titled Tuesday Blitz February 21 Late 2023"]
[White "Koziol, Kamil"]
[Black "Mihajlov, Sebastian"]
[WhiteFideId "1161555"]
[BlackFideId "1512110"]
[WhiteElo "2286"]
[BlackElo "2373"]
[Result "1-0"]
[Round "01"]
[TimeControl "180+2"]
[Date "2023.02.21"]
[WhiteClock "0:00:15"]
[BlackClock "0:00:07"]

1. e4 {[%clk 0:02:55]}  g6 {[%clk 0:03:00]} 2. d4 {[%clk 0:02:55]}  Bg7 {[%clk 0:03:01]} 3. Nc3 {[%clk 0:02:56]}  d6 {[%clk 0:03:02]} 4. Be3 {[%clk 0:02:57]}  a6 {[%clk 0:03:02]} 5. Qd2 {[%clk 0:02:57]}  b5 {[%clk 0:03:03]} 6. f3 {[%clk 0:02:58]}  Bb7 {[%clk 0:02:59]} 7. h4 {[%clk 0:02:58]}  h5 {[%clk 0:02:59]} 8. O-O-O {[%clk 0:02:58]}  Nf6 {[%clk 0:02:55]} 9. Nh3 {[%clk 0:02:58]}  Nbd7 {[%clk 0:02:55]} 10. Ng5 {[%clk 0:02:58]}  e6 {[%clk 0:02:50]} 11. Bd3 {[%clk 0:02:22]}  Nb6 {[%clk 0:02:32]} 12. Ne2 {[%clk 0:02:18]}  Qe7 {[%clk 0:02:20]} 13. Nf4 {[%clk 0:02:18]}  e5 {[%clk 0:01:58]} 14. dxe5 {[%clk 0:01:59]}  dxe5 {[%clk 0:01:59]} 15. Bxb6 {[%clk 0:01:59]}  cxb6 {[%clk 0:01:59]} 16. Nd5 {[%clk 0:02:00]}  Nxd5 {[%clk 0:01:59]} 17. exd5 {[%clk 0:02:00]}  O-O-O {[%clk 0:01:53]} 18. Qf2 {[%clk 0:01:34]}  Kc7 {[%clk 0:01:47]} 19. c4 {[%clk 0:01:23]}  bxc4 {[%clk 0:01:38]} 20. Bxc4 {[%clk 0:01:23]}  Bh6 {[%clk 0:01:37]} 21. f4 {[%clk 0:01:20]}  exf4 {[%clk 0:00:57]} 22. d6+ {[%clk 0:01:16]}  Rxd6 {[%clk 0:00:55]} 23. Rxd6 {[%clk 0:01:12]}  Qxd6 {[%clk 0:00:56]} 24. Nxf7 {[%clk 0:01:10]}  f3+ {[%clk 0:00:55]} 25. Kb1 {[%clk 0:01:04]}  fxg2 {[%clk 0:00:53]} 26. Re1 {[%clk 0:01:00]}  Qf4 {[%clk 0:00:45]} 27. Qxf4+ {[%clk 0:00:48]}  Bxf4 {[%clk 0:00:46]} 28. Nxh8 {[%clk 0:00:48]}  Bd2 {[%clk 0:00:37]} 29. Rg1 {[%clk 0:00:20]}  Be4+ {[%clk 0:00:33]} 30. Ka1 {[%clk 0:00:19]}  g5 {[%clk 0:00:19]} 31. hxg5 {[%clk 0:00:16]}  Bxg5 {[%clk 0:00:19]} 32. Bf1 {[%clk 0:00:15]}  gxf1=Q+ {[%clk 0:00:19]} 33. Rxf1 {[%clk 0:00:16]}  h4 {[%clk 0:00:19]} 34. Nf7 {[%clk 0:00:15]}  Be7 {[%clk 0:00:16]} 35. Re1 {[%clk 0:00:15]}  h3 {[%clk 0:00:07]} 36. Rxe4 {[%clk 0:00:14]}  h2 {[%clk 0:00:06]} 37. Rxe7+ {[%clk 0:00:15]}  Kc6 {[%clk 0:00:07]} 38. Re1 {[%clk 0:00:15]} 1-0


[Site "https://www.chess.com"]

[Event "Titled Tuesday Blitz February 21 Late 2023"]
[White "Cepo, Toni"]
[Black "Gascon Del Nogal, Jose Rafael"]
[WhiteFideId "4675916"]
[BlackFideId "3902463"]
[WhiteElo "2145"]
[BlackElo "2459"]
[Result "0-1"]
[Round "01"]
[TimeControl "180+2"]
[Date "2023.02.21"]
[WhiteClock "0:02:45"]
[BlackClock "0:02:36"]

1. e4 {[%clk 0:02:58]}  c5 {[%clk 0:02:59]} 2. Nf3 {[%clk 0:02:58]}  d6 {[%clk 0:02:59]} 3. d4 {[%clk 0:02:59]}  cxd4 {[%clk 0:03:00]} 4. Nxd4 {[%clk 0:03:00]}  Nf6 {[%clk 0:03:00]} 5. Bb5+ {[%clk 0:02:59]}  Bd7 {[%clk 0:02:57]} 6. Bxd7+ {[%clk 0:02:58]}  Nbxd7 {[%clk 0:02:57]} 7. Nc3 {[%clk 0:02:59]}  g6 {[%clk 0:02:55]} 8. O-O {[%clk 0:02:59]}  Bg7 {[%clk 0:02:56]} 9. Be3 {[%clk 0:02:59]}  O-O {[%clk 0:02:56]} 10. f3 {[%clk 0:02:59]}  Rc8 {[%clk 0:02:54]} 11. Qd2 {[%clk 0:02:58]}  Ne5 {[%clk 0:02:53]} 12. Qe2 {[%clk 0:02:56]}  Nc4 {[%clk 0:02:53]} 13. Rab1 {[%clk 0:02:50]}  Nxe3 {[%clk 0:02:37]} 14. Qxe3 {[%clk 0:02:46]}  Qb6 {[%clk 0:02:37]} 15. Rfe1 {[%clk 0:02:45]}  Ng4 {[%clk 0:02:36]} 0-1


[Site "https://www.chess.com"]

[Event "Titled Tuesday Blitz February 21 Late 2023"]
[White "Bhavikatti, Neil"]
[Black "Domingo Nunez, Ruben"]
[WhiteFideId "30935024"]
[BlackFideId "22245570"]
[WhiteElo "2051"]
[BlackElo "2416"]
[Result "1-0"]
[Round "01"]
[TimeControl "180+2"]
[Date "2023.02.21"]
[WhiteClock "0:00:11"]
[BlackClock "0:00:01"]

1. d4 {[%clk 0:03:00]}  g6 {[%clk 0:02:58]} 2. c4 {[%clk 0:03:00]}  Bg7 {[%clk 0:02:58]} 3. Nc3 {[%clk 0:03:01]}  d6 {[%clk 0:02:59]} 4. Nf3 {[%clk 0:03:00]}  Nd7 {[%clk 0:03:00]} 5. g3 {[%clk 0:02:57]}  Ngf6 {[%clk 0:03:00]} 6. Bg2 {[%clk 0:02:58]}  O-O {[%clk 0:03:01]} 7. O-O {[%clk 0:02:58]}  c5 {[%clk 0:03:02]} 8. b3 {[%clk 0:02:47]}  Rb8 {[%clk 0:03:02]} 9. Bb2 {[%clk 0:02:47]}  a6 {[%clk 0:03:02]} 10. Qd2 {[%clk 0:02:44]}  b5 {[%clk 0:03:03]} 11. cxb5 {[%clk 0:02:44]}  axb5 {[%clk 0:03:04]} 12. dxc5 {[%clk 0:02:42]}  Nxc5 {[%clk 0:03:05]} 13. Nd4 {[%clk 0:02:36]}  Bd7 {[%clk 0:03:05]} 14. Nc6 {[%clk 0:02:36]}  Bxc6 {[%clk 0:03:05]} 15. Bxc6 {[%clk 0:02:37]}  Qa5 {[%clk 0:02:55]} 16. Ne4 {[%clk 0:02:29]}  Qxd2 {[%clk 0:02:38]} 17. Nxd2 {[%clk 0:02:30]}  Rfc8 {[%clk 0:02:38]} 18. Bf3 {[%clk 0:02:26]}  e5 {[%clk 0:02:07]} 19. Rac1 {[%clk 0:02:12]}  Bh6 {[%clk 0:02:06]} 20. Rcd1 {[%clk 0:02:03]}  Rb6 {[%clk 0:01:29]} 21. Nb1 {[%clk 0:01:49]}  Ra6 {[%clk 0:01:24]} 22. Nc3 {[%clk 0:01:44]}  b4 {[%clk 0:01:20]} 23. Nb5 {[%clk 0:01:33]}  Rxa2 {[%clk 0:01:17]} 24. Nxd6 {[%clk 0:01:32]}  Rxb2 {[%clk 0:01:08]} 25. Nxc8 {[%clk 0:01:31]}  e4 {[%clk 0:01:09]} 26. Bg2 {[%clk 0:01:27]}  Nxb3 {[%clk 0:00:55]} 27. Ne7+ {[%clk 0:01:26]}  Kg7 {[%clk 0:00:55]} 28. Rb1 {[%clk 0:01:14]}  Rxb1 {[%clk 0:00:39]} 29. Rxb1 {[%clk 0:01:15]}  Nd4 {[%clk 0:00:39]} 30. Rxb4 {[%clk 0:01:14]}  Nxe2+ {[%clk 0:00:39]} 31. Kf1 {[%clk 0:01:13]}  Nc3 {[%clk 0:00:37]} 32. Rc4 {[%clk 0:01:09]}  Nb1 {[%clk 0:00:37]} 33. Ke2 {[%clk 0:01:03]}  Nd2 {[%clk 0:00:33]} 34. Ra4 {[%clk 0:00:58]}  Nb1 {[%clk 0:00:31]} 35. Rc4 {[%clk 0:00:52]}  Nd2 {[%clk 0:00:30]} 36. Rc7 {[%clk 0:00:48]}  Nb3 {[%clk 0:00:22]} 37. Nc6 {[%clk 0:00:45]}  Nd5 {[%clk 0:00:12]} 38. Rd7 {[%clk 0:00:42]}  Nc3+ {[%clk 0:00:12]} 39. Kf1 {[%clk 0:00:41]}  Kf6 {[%clk 0:00:12]} 40. Nd8 {[%clk 0:00:37]}  Nd2+ {[%clk 0:00:07]} 41. Kg1 {[%clk 0:00:36]}  Ne2+ {[%clk 0:00:07]} 42. Kh1 {[%clk 0:00:35]}  e3 {[%clk 0:00:07]} 43. Rxf7+ {[%clk 0:00:35]}  Ke5 {[%clk 0:00:07]} 44. fxe3 {[%clk 0:00:32]}  Bxe3 {[%clk 0:00:07]} 45. Nc6+ {[%clk 0:00:31]}  Kd6 {[%clk 0:00:07]} 46. Rxh7 {[%clk 0:00:28]}  Nc3 {[%clk 0:00:04]} 47. Rg7 {[%clk 0:00:26]}  g5 {[%clk 0:00:04]} 48. Rg6+ {[%clk 0:00:26]}  Kc5 {[%clk 0:00:04]} 49. Ne5 {[%clk 0:00:25]}  Nd1 {[%clk 0:00:04]} 50. Ng4 {[%clk 0:00:23]}  Bd4 {[%clk 0:00:04]} 51. Rxg5+ {[%clk 0:00:22]}  Kd6 {[%clk 0:00:04]} 52. Rf5 {[%clk 0:00:22]}  Bb6 {[%clk 0:00:03]} 53. Rf6+ {[%clk 0:00:22]}  Kc5 {[%clk 0:00:03]} 54. Rc6+ {[%clk 0:00:22]}  Kb5 {[%clk 0:00:04]} 55. Rd6 {[%clk 0:00:20]}  Ba5 {[%clk 0:00:03]} 56. h4 {[%clk 0:00:19]}  Bb4 {[%clk 0:00:02]} 57. Rd5+ {[%clk 0:00:18]}  Kc4 {[%clk 0:00:02]} 58. Rd8 {[%clk 0:00:14]}  Kc3 {[%clk 0:00:01]} 59. h5 {[%clk 0:00:14]}  Nb2 {[%clk 0:00:01]} 60. h6 {[%clk 0:00:13]}  Be7 {[%clk 0:00:01]} 61. Rd7 {[%clk 0:00:12]}  Bf8 {[%clk 0:00:01]} 62. h7 {[%clk 0:00:11]} 1-0


[Site "https://www.chess.com"]

[Event "Titled Tuesday Blitz February 21 Late 2023"]
[White "Risteski, Emil"]
[Black "Pino Perez, Lazaro"]
[WhiteFideId "15005267"]
[BlackFideId "3517055"]
[WhiteElo "2366"]
[BlackElo "2142"]
[Result "1-0"]
[Round "01"]
[TimeControl "180+2"]
[Date "2023.02.21"]
[WhiteClock "0:01:08"]
[BlackClock "0:00:01"]

1. Nf3 {[%clk 0:02:57]}  c5 {[%clk 0:02:58]} 2. g3 {[%clk 0:02:58]}  g6 {[%clk 0:02:58]} 3. Bg2 {[%clk 0:02:59]}  Bg7 {[%clk 0:02:58]} 4. O-O {[%clk 0:03:00]}  Nc6 {[%clk 0:02:59]} 5. e4 {[%clk 0:03:00]}  d6 {[%clk 0:02:56]} 6. c3 {[%clk 0:03:00]}  e5 {[%clk 0:02:53]} 7. Na3 {[%clk 0:02:58]}  Nge7 {[%clk 0:02:52]} 8. Nc2 {[%clk 0:02:56]}  O-O {[%clk 0:02:51]} 9. d4 {[%clk 0:02:55]}  cxd4 {[%clk 0:02:45]} 10. cxd4 {[%clk 0:02:55]}  Bg4 {[%clk 0:02:45]} 11. Be3 {[%clk 0:02:54]}  d5 {[%clk 0:01:51]} 12. exd5 {[%clk 0:02:36]}  Nxd5 {[%clk 0:01:45]} 13. dxe5 {[%clk 0:02:35]}  Nxe5 {[%clk 0:01:36]} 14. Bd4 {[%clk 0:02:35]}  Nxf3+ {[%clk 0:01:30]} 15. Bxf3 {[%clk 0:02:36]}  Bxf3 {[%clk 0:01:30]} 16. Qxf3 {[%clk 0:02:37]}  Bxd4 {[%clk 0:01:08]} 17. Nxd4 {[%clk 0:02:38]}  Qb6 {[%clk 0:01:08]} 18. Rad1 {[%clk 0:02:25]}  Rad8 {[%clk 0:00:58]} 19. Nf5 {[%clk 0:02:15]}  gxf5 {[%clk 0:00:25]} 20. Rxd5 {[%clk 0:02:13]}  Rxd5 {[%clk 0:00:26]} 21. Qxd5 {[%clk 0:02:14]}  Qxb2 {[%clk 0:00:27]} 22. Re1 {[%clk 0:02:06]}  b6 {[%clk 0:00:16]} 23. Re5 {[%clk 0:02:01]}  Rc8 {[%clk 0:00:14]} 24. Rxf5 {[%clk 0:01:58]}  Qc1+ {[%clk 0:00:11]} 25. Kg2 {[%clk 0:01:55]}  Qc6 {[%clk 0:00:12]} 26. Qxc6 {[%clk 0:01:37]}  Rxc6 {[%clk 0:00:12]} 27. Rf3 {[%clk 0:01:38]}  a5 {[%clk 0:00:11]} 28. Rb3 {[%clk 0:01:36]}  Kf8 {[%clk 0:00:10]} 29. h4 {[%clk 0:01:33]}  Ke7 {[%clk 0:00:10]} 30. h5 {[%clk 0:01:33]}  Kd7 {[%clk 0:00:10]} 31. g4 {[%clk 0:01:32]}  Kc7 {[%clk 0:00:10]} 32. Rf3 {[%clk 0:01:30]}  f6 {[%clk 0:00:09]} 33. Rf5 {[%clk 0:01:31]}  a4 {[%clk 0:00:08]} 34. Kg3 {[%clk 0:01:30]}  Kb7 {[%clk 0:00:08]} 35. f4 {[%clk 0:01:30]}  Ka6 {[%clk 0:00:08]} 36. g5 {[%clk 0:01:30]}  fxg5 {[%clk 0:00:08]} 37. fxg5 {[%clk 0:01:31]}  b5 {[%clk 0:00:08]} 38. Rf7 {[%clk 0:01:29]}  b4 {[%clk 0:00:07]} 39. Rf6 {[%clk 0:01:16]}  Kb5 {[%clk 0:00:05]} 40. Rxc6 {[%clk 0:01:15]}  Kxc6 {[%clk 0:00:06]} 41. g6 {[%clk 0:01:15]}  b3 {[%clk 0:00:06]} 42. gxh7 {[%clk 0:01:14]}  b2 {[%clk 0:00:05]} 43. h8=Q {[%clk 0:01:14]}  b1=Q {[%clk 0:00:05]} 44. Qe8+ {[%clk 0:01:12]}  Kc7 {[%clk 0:00:05]} 45. Qe7+ {[%clk 0:01:11]}  Kc8 {[%clk 0:00:05]} 46. Qf8+ {[%clk 0:01:11]}  Kc7 {[%clk 0:00:05]} 47. Qf4+ {[%clk 0:01:10]}  Kd8 {[%clk 0:00:03]} 48. Qf8+ {[%clk 0:01:09]}  Kc7 {[%clk 0:00:03]} 49. Qf7+ {[%clk 0:01:09]}  Kd8 {[%clk 0:00:03]} 50. h6 {[%clk 0:01:08]}  Qd3+ {[%clk 0:00:01]} 51. Kh4 {[%clk 0:01:08]}  Qe4+ {[%clk 0:00:01]} 52. Kg5 {[%clk 0:01:08]}  Qg2+ {[%clk 0:00:01]} 53. Kf6 {[%clk 0:01:08]}  Qf3+ {[%clk 0:00:01]} 54. Kg7 {[%clk 0:01:08]} 1-0


[Site "https://www.chess.com"]